bitfinex-derivatives/quotes_SOLF0:USTF0_20241127
["timestamp","ask_amount","ask_price","bid_price","bid_amount"]
[1732714179084,2.1186,235.99,235.91,2.36]
[1732714180174,2.1186,235.99,235.91,4.4793]
[1732714181273,3.6199,236.05,235.91,4.4793]
[1732714181274,1.2599,236.05,235.92,10.34634241]
[1732714181784,9.0272455,236.04,235.92,10.34634241]
[1732714183372,2.1184,236.02,235.95,2.1189]
[1732714183582,1.2599,236.05,235.92,10.34634241]
[1732714183776,9.02653493,236.04,235.92,10.34634241]
[1732714184075,2.1183,236.02,235.91,2.36]
[1732714184265,1.2599,236.05,235.91,2.36]
[1732714184466,9.02647504,236.04,235.91,2.36]
[1732714184877,2.1186,236.0,235.92,2.1192]
[1732714185379,2.1186,236.0,235.91,2.36]
[1732714187071,1.2599,236.05,235.92,10.34634241]
[1732714187278,11.14407669,236.04,235.92,10.34634241]
[1732714187477,2.1181,236.04,235.92,10.34634241]
[1732714187679,2.1181,236.04,235.96,2.1188]
[1732714187869,1.2599,236.05,235.92,10.34634241]
[1732714188070,19.37186488,236.04,235.88,10.34634241]
[1732714188277,10.34634241,236.01,235.9,2.1193]
[1732714188681,2.1189,235.96,235.89,2.36]
[1732714188876,2.1189,235.96,235.85,10.34634241]
[1732714189076,2.1189,235.96,235.87,2.36]
[1732714189280,2.1187,235.98,235.89,2.1194]
[1732714189476,2.1187,235.98,235.87,2.36]
[1732714190077,2.36,236.03,235.87,2.36]
[1732714190279,19.37156554,236.02,235.87,2.36]
[1732714190476,9.02522313,236.01,235.87,2.36]
[1732714190676,10.34634241,236.02,235.87,2.36]
[1732714190878,10.34634241,235.99,235.83,1.2999]
[1732714191074,2.5907,235.98,235.87,2.36]
[1732714191484,2.1189,235.96,235.88,2.1195]
[1732714192175,2.5907,235.98,235.88,2.1195]
[1732714192382,2.1189,235.95,235.88,2.1195]
[1732714193677,2.1189,235.95,235.89,2.1195]
[1732714193882,2.5907,235.98,235.87,2.36]
[1732714194278,2.36,236.03,235.88,10.34634241]
[1732714194480,11.13893909,236.02,235.88,10.34634241]
[1732714194781,1.2599,236.05,235.93,2.1191]
[1732714194978,9.02039391,236.04,235.93,4.4791]
[1732714195184,2.1185,236.0,235.93,4.4791]
[1732714195780,2.1185,236.0,235.94,2.119]
[1732714196185,2.1184,236.01,235.93,2.36]
[1732714196379,298.9074676,236.28,235.99,10.34634241]
[1732714196588,2.1174,236.13,236.0,2.36]
[1732714196878,1.263,236.15,236.0,2.36]
[1732714197081,1.263,236.15,235.99,10.34634241]
[1732714197082,2.1174,236.13,235.99,10.34634241]
[1732714197284,2.1174,236.13,236.01,2.36]
[1732714197481,1.263,236.15,236.01,2.36]
[1732714197677,2.1174,236.13,236.05,2.118]
[1732714198883,9.01614248,236.12,236.05,2.118]
[1732714199078,11.13354248,236.12,236.05,2.118]
[1732714199279,1.263,236.15,236.05,2.118]
[1732714199480,9.01529432,236.14,236.01,2.36]
[1732714199677,11.13259432,236.14,236.06,2.1179]
[1732714200075,9.01529432,236.13,236.01,12.70634241]
[1732714200482,9.01529432,236.14,236.05,10.34634241]
[1732714200684,9.01529432,236.14,236.01,12.70634241]
[1732714200882,9.01529432,236.14,236.04,2.118]
[1732714201082,9.01529432,236.14,236.01,12.70634241]
[1732714201383,9.01529432,236.14,236.06,10.34634241]
[1732714201587,2.5073,236.25,236.07,3.6684]
[1732714201886,9.01133865,236.24,236.07,3.6684]
[1732714202178,9.01133865,236.24,236.07,12.70634241]
[1732714202385,10.21523865,236.24,236.07,12.70634241]
[1732714202584,2.1168,236.2,236.07,12.70634241]
[1732714202782,9.01133865,236.19,236.07,12.70634241]
[1732714203282,9.01133865,236.21,236.09,2.1177]
[1732714203484,10.34634241,236.18,236.04,1.3252]
[1732714203687,10.34634241,236.14,236.02,2.36]
[1732714203886,1.2393,236.13,236.01,2.36]
[1732714204188,1.2039,236.24,236.08,10.34634241]
[1732714204490,10.2093926,236.23,236.09,2.36]
[1732714204989,11.61434241,236.25,236.09,2.36]
[1732714204990,9.0055926,236.22,236.16,10.34634241]
[1732714205189,9.0055926,236.21,236.17,2.36]
[1732714205389,10.34634241,236.34,236.17,2.36]
[1732714205587,9.0018435,236.33,236.17,2.36]
[1732714206087,9.0018435,236.33,236.19,2.1168]
[1732714206485,9.0018435,236.33,236.2,2.36]
[1732714206681,2.116,236.29,236.22,2.1165]
[1732714206888,9.0018435,236.28,236.2,2.36]
[1732714207190,2.1157,236.31,236.24,2.1163]
[1732714207386,8.99221341,236.3,236.24,2.1163]
[1732714207582,8.99221341,236.29,236.22,10.34634241]
[1732714207782,3.7365,236.35,236.22,10.34634241]
[1732714208090,8.99055784,236.34,236.22,10.34634241]
[1732714208786,8.99055784,236.34,236.25,10.34634241]
[1732714208987,0.28036,236.36,236.22,1.2785]
[1732714208988,0.28036,236.36,236.28,10.34634241]
[1732714209188,0.28036,236.36,236.34,2.1154]
[1732714209497,0.28036,236.36,236.35,2.36]
[1732714209990,0.28036,236.36,236.34,12.46174241]
[1732714210286,0.28036,236.36,236.28,10.34634241]
[1732714210483,0.28036,236.36,236.25,10.34634241]
[1732714210692,0.28036,236.36,236.26,2.36]
[1732714210989,0.28036,236.36,236.28,10.34634241]
[1732714211187,0.28036,236.36,236.29,2.36]
[1732714211389,0.28036,236.36,236.3,2.36]
[1732714212088,2.1156,236.33,236.31,2.36]
[1732714212287,0.28036,236.36,236.31,2.36]
[1732714212594,0.28036,236.36,236.32,10.34634241]
[1732714212792,0.28036,236.36,236.34,2.1154]
[1732714213185,0.28036,236.36,236.35,10.34634241]
[1732714214391,1.3243,236.47,236.35,10.34634241]
[1732714214898,1.3243,236.47,236.38,2.115]
[1732714215097,1.3243,236.47,236.39,2.36]
[1732714215898,3.4386,236.47,236.39,2.36]
[1732714216197,3.4386,236.47,236.35,10.34634241]
[1732714216198,1.3243,236.47,236.35,10.34634241]
[1732714216391,1.3243,236.47,236.32,1.2325]
[1732714216392,2.5314,236.51,236.41,10.34634241]
[1732714216592,2.5314,236.51,236.42,2.36]
[1732714217292,4.6453,236.51,236.42,4.4747]
[1732714217497,2.1139,236.51,236.42,2.36]
[1732714218303,2.1138,236.52,236.44,2.1145]
[1732714218504,1.2617,236.54,236.42,2.36]
[1732714218903,2.114,236.5,236.43,2.1146]
[1732714219104,1.2617,236.54,236.44,2.36]
[1732714219105,10.34634241,236.53,236.44,2.36]
[1732714219400,1.2617,236.54,236.45,2.36]
[1732714219606,2.1138,236.53,236.46,4.4744]
[1732714219805,2.1138,236.53,236.47,2.36]
[1732714220810,2.1138,236.53,236.47,4.4743]
[1732714221001,1.2617,236.54,236.47,4.4743]
[1732714221304,10.34634241,236.53,236.38,10.34634241]
[1732714221495,10.34634241,236.53,236.39,2.36]
[1732714221695,1.2617,236.54,236.41,10.34634241]
[1732714222109,1.2617,236.54,236.44,10.34634241]
[1732714222303,1.2617,236.54,236.45,2.36]
[1732714222803,3.3754,236.54,236.48,2.1142]
[1732714223201,3.3754,236.54,236.45,2.36]
[1732714223401,1.2617,236.54,236.45,2.36]
[1732714224109,1.2617,236.54,236.48,2.1142]
[1732714224401,1.3058,236.71,236.5,10.34634241]
[1732714224607,1.3058,236.71,236.55,10.34634241]
[1732714224608,2.5448,236.7,236.55,10.34634241]
[1732714225004,10.34634241,236.67,236.51,10.34634241]
[1732714225207,2.1129,236.62,236.56,2.1134]
[1732714225405,10.34634241,236.67,236.57,2.36]
[1732714225609,10.34634241,236.67,236.58,2.36]
[1732714225804,2.1127,236.65,236.59,2.36]
[1732714226601,12.89114241,236.7,236.59,2.36]
[1732714228011,2.1125,236.67,236.61,2.113]
[1732714229709,2.1125,236.67,236.59,2.36]
[1732714229905,10.34634241,236.65,236.46,1.3187]
[1732714230107,10.34634241,236.65,236.47,2.38]
[1732714230306,2.38,236.69,236.56,2.1135]
[1732714230611,10.34634241,236.69,236.55,2.38]
[1732714230815,10.34634241,236.69,236.53,10.34634241]
[1732714230816,10.34634241,236.69,236.56,2.38]
[1732714231816,2.1131,236.61,236.56,2.38]
[1732714232008,10.34634241,236.65,236.56,2.38]
[1732714232717,10.34634241,236.65,236.49,10.34634241]
[1732714233008,10.34634241,236.65,236.5,2.38]
[1732714233206,2.5448,236.7,236.5,2.38]
[1732714233408,10.34634241,236.67,236.5,2.38]
[1732714233807,10.34634241,236.67,236.52,10.34634241]
[1732714235012,2.113,236.62,236.54,2.1136]
[1732714235214,10.34634241,236.67,236.5,2.38]
[1732714235615,2.1129,236.62,236.53,2.1137]
[1732714235916,10.34634241,236.67,236.5,2.38]
[1732714236116,2.1127,236.65,236.56,2.1135]
[1732714236320,2.5448,236.7,236.57,2.38]
[1732714237318,2.1126,236.66,236.59,2.1132]
[1732714237518,2.5448,236.7,236.59,2.1132]
[1732714238116,2.1126,236.66,236.59,2.1132]
[1732714238313,2.5448,236.7,236.56,12.45974241]
[1732714238514,2.1126,236.67,236.57,2.38]
[1732714238715,2.5448,236.7,236.57,2.38]
[1732714239418,2.5448,236.7,236.57,4.4933]
[1732714239621,2.1128,236.64,236.57,4.4933]
[1732714241119,2.113,236.62,236.58,2.38]
[1732714241318,10.34634241,236.68,236.58,2.38]
[1732714242120,2.1127,236.65,236.58,2.38]
[1732714242314,10.34634241,236.68,236.58,2.38]
[1732714243115,2.5448,236.7,236.58,2.38]
[1732714243816,2.1125,236.67,236.6,2.1131]
[1732714244224,2.5448,236.7,236.6,2.1131]
[1732714244617,2.1125,236.67,236.6,2.1131]
[1732714245016,2.1126,236.66,236.6,2.1131]
[1732714245222,2.5448,236.7,236.58,2.38]
[1732714245518,2.1125,236.67,236.58,2.38]
[1732714245712,2.5448,236.7,236.58,2.38]
[1732714247121,2.5448,236.7,236.46,1.3187]
[1732714247322,2.5448,236.7,236.53,10.34634241]
[1732714247520,10.34634241,236.62,236.46,1.3187]
[1732714247726,2.1135,236.56,236.49,2.1141]
[1732714247915,1.2674,236.61,236.48,2.38]
[1732714248120,2.1136,236.55,236.48,4.4942]
[1732714248318,2.4404,236.6,236.48,2.38]
[1732714248825,10.34634241,236.56,236.46,2.38]
[1732714249327,2.4404,236.6,236.46,12.72634241]
[1732714249824,2.1137,236.54,236.48,2.1142]
[1732714250023,2.4404,236.6,236.46,12.72634241]
[1732714250620,2.4404,236.6,236.48,2.1142]
[1732714250621,2.1137,236.54,236.48,2.1142]
[1732714250824,10.34634241,236.59,236.45,2.38]
[1732714251220,10.34634241,236.59,236.45,12.72634241]
[1732714251723,2.1136,236.55,236.46,2.1143]
[1732714251923,10.34634241,236.59,236.45,12.72634241]
[1732714252829,2.4404,236.6,236.47,2.1143]
[1732714253127,2.4404,236.6,236.45,12.72634241]
[1732714253623,2.4404,236.6,236.46,2.1144]
[1732714253831,10.34634241,236.59,236.45,2.38]
[1732714254025,10.34634241,236.59,236.46,2.38]
[1732714254225,2.114,236.51,236.46,2.38]
[1732714254430,2.4404,236.6,236.46,2.38]
[1732714255428,2.4404,236.6,236.45,10.34634241]
[1732714255628,2.4404,236.6,236.46,2.38]
[1732714255827,1.2674,236.61,236.46,2.38]
[1732714256032,2.5492,236.61,236.46,2.38]
[1732714256630,2.5492,236.61,236.48,10.34634241]
[1732714257334,2.1134,236.58,236.51,2.1139]
[1732714257528,2.1134,236.58,236.52,2.38]
[1732714257730,10.34634241,236.59,236.43,10.34634241]
[1732714258032,10.34634241,236.56,236.44,2.38]
[1732714258232,10.34634241,236.56,236.4,10.34634241]
[1732714258233,1.3033,236.55,236.4,10.34634241]
[1732714258432,1.3033,236.55,236.41,2.38]
[1732714258628,2.1139,236.51,236.44,2.1145]
[1732714258833,2.1139,236.51,236.41,2.38]
[1732714259132,2.1138,236.53,236.43,10.34634241]
[1732714259437,1.3033,236.55,236.46,10.34634241]
[1732714259631,1.3033,236.55,236.47,2.46]
[1732714260026,2.5492,236.61,236.47,2.46]
[1732714260236,2.5492,236.61,236.49,10.34634241]
[1732714260428,2.5492,236.61,236.52,10.34634241]
[1732714260634,2.5492,236.61,236.53,2.46]
[1732714261033,2.1134,236.57,236.5,2.114]
[1732714261337,10.34634241,236.59,236.43,10.34634241]
[1732714261536,10.34634241,236.56,236.44,2.46]
[1732714261726,1.231,236.55,236.44,2.46]
[1732714262435,2.5492,236.61,236.5,10.34634241]
[1732714262639,9.00608122,236.6,236.51,2.46]
[1732714262846,2.5492,236.61,236.51,2.46]
[1732714263534,2.1133,236.58,236.51,4.5738]
[1732714263733,2.5492,236.61,236.51,2.46]
[1732714263929,9.0090769,236.6,236.51,2.46]
[1732714264634,10.34634241,236.59,236.42,10.34634241]
[1732714264941,2.1141,236.5,236.42,2.1147]
[1732714265237,10.34634241,236.53,236.42,2.46]
[1732714265436,2.114,236.51,236.43,2.1146]
[1732714265636,9.01544124,236.52,236.42,12.80634241]
[1732714265844,1.2854,236.58,236.48,10.34634241]
[1732714266139,9.01423204,236.57,236.49,2.46]
[1732714267244,2.1137,236.54,236.45,2.1144]
[1732714267541,9.01423204,236.53,236.46,2.46]
[1732714267840,10.34634241,236.56,236.46,2.46]
[1732714268046,2.1137,236.53,236.46,2.46]
[1732714268246,8.98063172,236.52,236.46,2.46]
[1732714268545,8.98063172,236.52,236.46,4.5744]
[1732714269340,11.09443172,236.52,236.46,2.46]
[1732714269541,8.98063172,236.51,236.46,2.46]
[1732714270050,2.114,236.5,236.46,2.46]
[1732714270346,2.114,236.5,236.45,2.46]
[1732714271141,2.1142,236.48,236.45,2.46]
[1732714271342,1.2133,236.55,236.45,2.46]
[1732714271542,8.97938535,236.54,236.45,2.46]
[1732714271743,2.1139,236.51,236.45,2.46]
[1732714271935,8.97938535,236.5,236.36,1.2373]
[1732714272140,11.55964241,236.55,236.01,29.28726394]
[1732714272141,10.34634241,236.34,236.01,213.15921958]
[1732714272336,2.78,236.33,236.02,9.46882649]
[1732714272541,2.1172,236.14,236.02,2.70891698]
[1732714272842,10.34634241,236.17,236.03,3.18]
[1732714273153,10.34634241,236.13,236.04,3.18]
[1732714273336,10.34634241,236.17,236.05,3.18]
[1732714273649,10.34634241,236.21,236.04,10.34634241]
[1732714273842,10.34634241,236.17,236.05,3.18]
[1732714274147,10.34634241,236.17,236.06,3.18]
[1732714274343,293.73170376,236.27,236.07,3.18]
[1732714274344,2.1171,236.16,236.07,3.18]
[1732714274541,16.54527803,236.24,236.02,16.54527803]
[1732714274740,16.54527803,236.17,236.03,3.18]
[1732714274943,16.54527803,236.17,235.99,1.2471]
[1732714274944,0.54527803,236.17,235.99,1.2471]
[1732714275139,0.54527803,236.17,236.0,3.18]
[1732714275841,2.66227803,236.17,236.0,5.2985]
[1732714276446,2.1171,236.16,236.01,3.18]
[1732714276944,18.66307803,236.09,235.99,1.2471]
[1732714277148,16.54527803,236.09,235.99,1.2471]
[1732714277445,16.54527803,236.05,235.98,2.10585943]
[1732714277649,16.54527803,236.05,235.97,3.18]
[1732714277845,16.54527803,236.1,235.98,3.18]
[1732714278038,16.54527803,236.06,235.97,3.18]
[1732714278243,2.118,236.05,235.98,3.18]
[1732714278644,2.1186,235.99,235.9,3.8346]
[1732714278846,16.54527803,235.98,235.8,16.54527803]
[1732714279147,16.54527803,235.94,235.81,3.7133]
[1732714279445,16.54527803,235.94,235.82,3.18]
[1732714279850,16.54527803,235.9,235.8,3.18]
[1732714280053,16.54527803,235.86,235.8,3.18]
[1732714280247,16.54527803,235.9,235.8,3.18]
[1732714280542,16.54527803,235.86,235.8,3.18]
[1732714280755,2.1195,235.89,235.8,3.18]
[1732714280948,2.1195,235.89,235.8,0.57973544]
[1732714281147,2.1194,235.9,235.8,0.57973544]
[1732714281353,16.54527803,235.92,235.8,0.57973544]
[1732714281848,16.54527803,235.92,234.87,1.83348726]
[1732714281849,16.54527803,235.92,235.68,9.59601142]
[1732714282047,3.18,235.99,235.69,3.18]
[1732714282247,16.54527803,235.86,235.7,3.18]
[1732714282446,16.54527803,235.86,235.71,3.18]
[1732714282647,16.54527803,235.86,235.72,3.18]
[1732714282848,16.54527803,235.82,235.72,3.18]
[1732714283047,16.54527803,235.82,235.61,49.58527803]
[1732714283048,16.54527803,235.82,235.7,3.18]
[1732714283252,1.2398,235.91,235.71,3.18]
[1732714283253,16.54527803,235.87,235.71,3.18]
[1732714283447,17.78507803,235.91,235.72,3.18]
[1732714283652,2.1197,235.87,235.74,2.1208]
[1732714283848,16.54527803,235.91,235.75,3.18]
[1732714284049,16.54527803,235.95,235.76,3.18]
[1732714284254,2.1194,235.9,235.77,2.1205]
[1732714284655,16.54527803,235.95,235.77,1.2804]
[1732714285553,2.1193,235.91,235.79,2.1203]
[1732714285758,16.54527803,235.91,235.76,2.45898891]
[1732714285953,3.18,235.97,235.76,2.45898891]
[1732714285954,16.54527803,235.87,235.76,2.45898891]
[1732714286452,16.54527803,235.87,235.76,3.18]
[1732714286653,16.54527803,235.83,235.73,3.18]
[1732714286856,2.1204,235.79,235.73,1.2088383]
[1732714287259,16.54527803,235.83,235.7,3.18]
[1732714287461,16.54527803,235.79,235.62,2.5144]
[1732714288061,16.54527803,235.79,235.63,3.18]
[1732714288265,2.1207,235.76,235.65,2.1216]
[1732714288564,16.54527803,235.79,235.66,3.18]
[1732714288765,16.54527803,235.79,235.66,1.8714479]
[1732714288962,19.72527803,235.83,235.66,1.8714479]
[1732714289261,16.54527803,235.88,235.66,1.8714479]
[1732714289466,16.54527803,235.88,235.69,16.54527803]
[1732714289667,1.287,235.91,235.69,16.54527803]
[1732714289966,16.54527803,235.88,235.7,3.18]
[1732714290267,16.54527803,235.88,235.62,2.5144]
[1732714290268,16.54527803,235.84,235.71,3.18]
[1732714290467,16.54527803,235.84,235.72,1.22563036]
[1732714290766,2.1204,235.79,235.72,3.18]
[1732714290958,16.54527803,235.8,235.67,3.18]
[1732714291160,1.2552,235.87,235.62,5.6944]
[1732714291161,16.54527803,235.76,235.62,5.6944]
[1732714291762,19.72527803,235.8,235.62,5.6944]
[1732714291963,2.1204,235.79,235.62,5.6944]
[1732714292159,16.54527803,235.84,235.62,5.6944]
[1732714292469,2.1204,235.79,235.68,2.1213]
[1732714292663,16.54527803,235.84,235.69,3.18]
[1732714292864,16.54527803,235.84,235.7,3.18]
[1732714293066,16.54527803,235.84,235.71,3.18]
[1732714293264,1.2933,235.86,235.73,2.1209]
[1732714293265,2.1199,235.85,235.73,2.1209]
[1732714293468,1.2552,235.87,235.74,3.18]
[1732714293664,2.12,235.83,235.74,3.18]
[1732714293970,1.2552,235.87,235.74,3.18]
[1732714293971,16.54527803,235.84,235.74,3.18]
[1732714294266,16.54527803,235.84,235.69,3.18]
[1732714295074,1.2815,235.86,235.69,19.72527803]
[1732714296165,2.1199,235.85,235.74,2.1208]
[1732714296369,1.2815,235.86,235.74,2.1208]
[1732714296670,16.54527803,235.84,235.66,1.2949]
[1732714296968,101.0,236.23,235.73,16.54527803]
[1732714297162,101.0,236.23,235.67,3.18]
[1732714297163,1.2977,236.19,235.96,16.54527803]
[1732714297362,17.84297803,236.19,235.97,3.4]
[1732714297563,2.1164,236.23,236.08,2.1177]
[1732714297768,16.54527803,236.27,236.07,16.54527803]
[1732714297973,16.54527803,236.27,236.04,3.4]
[1732714298273,2.1167,236.21,236.06,2.1179]
[1732714298468,16.54527803,236.19,235.98,5.9893]
[1732714298674,3.4,236.18,235.98,5.9893]
[1732714299768,2.1171,236.16,236.01,2.1183]
[1732714299964,16.54527803,236.15,235.97,1.2744]
[1732714300370,26.8950903,236.13,235.97,1.2744]
[1732714301270,26.8950903,236.13,235.92,3.4]
[1732714301972,26.8950903,236.13,235.96,2.1188]
[1732714302272,26.8950903,236.09,235.88,26.8950903]
[1732714302570,2.118,236.06,235.91,2.1192]
[1732714302770,2.118,236.06,235.89,3.4]
[1732714303173,26.8950903,236.05,235.9,2.1193]
[1732714303571,26.8950903,236.01,235.81,1.2933]
[1732714303872,3.4,236.0,235.81,1.2933]
[1732714304366,26.8950903,235.97,235.82,2.12]
[1732714305366,2.1191,235.94,235.82,2.12]
[1732714305571,2.1191,235.94,235.8,3.4]
[1732714305572,26.8950903,235.93,235.79,2.1203]
[1732714305767,3.4,235.92,235.76,3.4]
[1732714307078,3.4,235.95,235.76,30.2950903]
[1732714307374,26.8950903,235.97,235.76,30.2950903]
[1732714307575,3.4,235.96,235.76,30.2950903]
[1732714307876,3.4,235.95,235.79,2.1203]
[1732714308274,3.4,235.95,235.69,1.3105]
[1732714308476,26.8950903,235.89,235.69,1.3105]
[1732714310678,26.8950903,235.89,235.73,2.1208]
[1732714311081,26.8950903,235.89,235.69,1.3105]
[1732714311879,2.12,235.83,235.71,2.121]
[1732714312075,26.8950903,235.89,235.59,0.61766]
[1732714312076,26.8950903,235.75,235.59,0.61766]
[1732714312480,2.121,235.73,235.59,0.61766]
[1732714313083,2.121,235.72,235.59,2.73976]
[1732714313275,26.8950903,235.75,235.59,0.61766]
[1732714313584,26.8950903,235.71,235.59,0.61766]
[1732714314884,2.1213,235.69,235.59,0.61766]
[1732714315079,26.8950903,235.92,235.59,27.5127503]
[1732714315288,26.8950903,235.83,235.63,26.8950903]
[1732714315479,2.12,235.84,235.67,26.8950903]
[1732714315678,1.26,235.85,235.68,3.4]
[1732714315878,2.1203,235.8,235.69,2.1212]
[1732714316077,26.8950903,235.83,235.68,3.4]
[1732714316483,3.3409,235.82,235.69,2.1212]
[1732714316784,1.2207,235.82,235.68,3.4]
[1732714317081,1.2207,235.82,235.73,2.1209]
[1732714317281,1.2207,235.82,235.68,3.4]
[1732714317481,1.2207,235.82,235.64,1.2073]
[1732714317681,1.2207,235.82,235.65,3.4]
[1732714317876,2.1204,235.79,235.69,2.1213]
[1732714318077,1.2207,235.82,235.65,3.4]
[1732714318679,1.2207,235.82,235.7,2.1211]
[1732714318878,1.2207,235.82,235.65,3.4]
[1732714319382,2.1202,235.81,235.7,2.1212]
[1732714319686,1.2207,235.82,235.65,3.4]
[1732714320590,26.8950903,235.87,235.67,26.8950903]
[1732714321089,26.8950903,235.83,235.65,3.4]
[1732714321288,26.8950903,235.87,235.67,26.8950903]
[1732714321492,1.2013,235.9,235.71,26.8950903]
[1732714322085,1.2013,235.9,235.76,2.1206]
[1732714322281,28.0963903,235.9,235.77,3.4]
[1732714322489,28.0963903,235.9,235.75,2.1207]
[1732714322490,2.1199,235.85,235.75,2.1207]
[1732714322691,28.0963903,235.9,235.76,3.4]
[1732714322909,28.0963903,235.9,235.77,3.4]
[1732714323225,26.8950903,235.86,235.77,3.4]
[1732714323811,28.0963903,235.9,235.77,3.4]
[1732714324409,1.2013,235.9,235.77,3.4]
[1732714324706,1.2013,235.9,235.81,2.1201]
[1732714325007,1.2013,235.9,235.77,3.4]
[1732714325710,16.5786907,235.94,235.77,3.4]
[1732714326301,2.5981,235.98,235.77,3.4]
[1732714326302,30.29531906,235.96,235.77,3.4]
[1732714326602,30.29531906,235.96,235.78,1.2491]
[1732714326795,26.92971906,235.92,235.79,3.24]
[1732714327200,26.92971906,235.88,235.79,3.24]
[1732714327494,26.92971906,235.88,235.73,3.24]
[1732714327694,2.1198,235.86,235.76,2.1206]
[1732714327997,26.92971906,235.88,235.73,3.24]
[1732714328198,26.92971906,235.84,235.73,3.24]
[1732714328792,26.92971906,235.8,235.72,2.121]
[1732714329000,26.92971906,235.8,235.7,3.24]
[1732714329189,29.05001906,235.8,235.72,2.121]
[1732714329390,1.2506,235.82,235.7,3.24]
[1732714330896,1.2506,235.82,235.73,2.1209]
[1732714331093,26.92971906,235.8,235.7,3.24]
[1732714331293,26.92971906,235.76,235.66,3.24]
[1732714331496,26.92971906,235.76,235.61,1.2204]
[1732714331497,26.92971906,235.76,235.61,3.24]
[1732714331695,26.92971906,235.8,235.61,3.24]
[1732714331696,26.92971906,235.72,235.61,3.24]
[1732714332194,1.2506,235.82,235.64,26.92971906]
[1732714332594,1.2338,235.83,235.65,1.2075]
[1732714333300,1.2338,235.83,235.76,2.1206]
[1732714333495,1.2338,235.83,235.65,1.2075]
[1732714333496,1.2338,235.83,235.74,3.24]
[1732714333690,1.2338,235.83,235.72,3.24]
[1732714333894,1.2338,235.83,235.65,1.2075]
[1732714333895,26.92971906,235.8,235.65,1.2075]
[1732714334198,26.92971906,235.8,235.66,3.24]
[1732714334495,26.92971906,235.8,235.7,2.1212]
[1732714334794,26.92971906,235.76,235.56,1.2499]
[1732714334997,29.05041906,235.76,235.65,2.1215]
[1732714335199,29.05041906,235.76,235.59,3.24]
[1732714335499,26.92971906,235.8,235.59,30.16971906]
[1732714335898,26.92971906,235.76,235.59,3.24]
[1732714336096,1.2065,235.75,235.59,3.24]
[1732714336303,2.1209,235.73,235.64,2.1217]
[1732714336508,1.2065,235.75,235.57,2.4387]
[1732714336810,29.05081906,235.72,235.62,2.1219]
[1732714337102,29.05081906,235.72,235.59,3.24]
[1732714337601,29.05081906,235.72,235.63,2.1218]
[1732714337995,2.1208,235.74,235.65,2.1216]
[1732714338198,2.5186,235.75,235.59,3.24]
[1732714338599,2.1211,235.71,235.63,2.1217]
[1732714338996,2.5186,235.75,235.59,3.24]
[1732714339499,2.5186,235.75,235.56,1.2684]
[1732714339500,26.92971906,235.72,235.56,1.2684]
[1732714339704,26.92971906,235.68,235.56,1.2684]
[1732714340096,26.92971906,235.68,235.6,2.1221]
[1732714340694,26.92971906,235.68,235.55,0.67598]
[1732714340899,1.283,235.67,235.55,0.67598]
[1732714341099,1.283,235.67,235.6,2.1221]
[1732714341303,2.5186,235.75,235.56,26.92971906]
[1732714341501,2.5186,235.75,235.57,3.24]
[1732714341702,2.1208,235.74,235.65,2.1216]
[1732714342302,4.6393,235.75,235.66,2.1215]
[1732714342701,2.5186,235.75,235.67,2.1214]
[1732714342899,2.5186,235.75,235.64,3.24]
[1732714343709,5.7586,235.75,235.58,3.24]
[1732714344004,5.7586,235.75,235.62,2.1219]
[1732714344309,2.5186,235.75,235.58,3.24]
[1732714344601,2.121,235.72,235.63,2.1218]
[1732714344906,2.5186,235.75,235.58,3.24]
[1732714345103,2.1213,235.69,235.61,2.1219]